fUSD/lending_fUSD_20250911
["ID","MTS","AMOUNT","RATE_DAILY","PERIOD"]
[384881896,1757613032052,-257.91778498,0.00024885,2]
[384881897,1757613032062,-500.0,0.00024885,2]
[384881898,1757613032072,-514.39538265,0.00024885,2]
[384881899,1757613032084,-37.69767369,0.000249,2]
[384881900,1757613032096,-670.45874351,0.000249,2]
[384881922,1757613032367,-2042.32476708,0.000249,2]
[384881927,1757613032380,-2216.40238687,0.000249,2]
[384881930,1757613032389,-1572.07,0.00025836,2]
[384881932,1757613032398,-249.44,0.00025841,2]
[384881935,1757613032407,-189.22,0.0002587,2]
[384881937,1757613032417,-4316.88,0.00025898,2]
[384881939,1757613032426,-160.0,0.00025927,2]
[384881940,1757613032435,-170.1,0.00025931,2]
[384881941,1757613032444,-666.0,0.00026017,3]
[384881942,1757613032453,-11577.84032004,0.00026085,7]
[384881943,1757613032464,-284.23252147,0.00026085,7]
[384881944,1757613032486,-1206.25572442,0.00026085,7]
[384881945,1757613032497,-12434.07143407,0.00026085,7]
[384881946,1757613032506,-212.89373682,0.00026085,7]
[384881947,1757613032518,-515.37529716,0.00026085,7]
[384881948,1757613032528,-238.0,0.000261,2]
[384881949,1757613032537,-150.0,0.00026111,7]
[384881950,1757613032546,-200.0,0.00026204,2]
[384881951,1757613032555,-250.0,0.00026238,2]
[384881952,1757613032564,-267.46074303,0.00026254,2]
[384881953,1757613032573,-1265.57,0.00026259,2]
[384881954,1757613032582,-209.58,0.0002635,7]
[384881955,1757613032591,-420.0,0.00026695,2]
[384881956,1757613032601,-678.14565193,0.00026816,2]
[384881957,1757613032624,-666.0,0.00026816,2]
[384881958,1757613032662,-335.85434807,0.00026816,2]
[384881959,1757613032671,-174.0,0.00026878,2]
[384881960,1757613032681,-164.0,0.00027,7]
[384881961,1757613032690,-196.0,0.00027,7]
[384881962,1757613032699,-18.56706629,0.00027,3]
[384881963,1757613032710,-981.43293371,0.00027,3]
[384881964,1757613032719,-1000.0,0.00027,3]
[384881965,1757613032729,-1000.0,0.00027,3]
[384881966,1757613032738,-1252.0,0.00027,4]
[384881967,1757613032747,-1000.0,0.00027,4]
[384881968,1757613032756,-79.98875929,0.00027,4]
[384881969,1757613032771,-920.01124071,0.00027,4]
[384881970,1757613032781,-1000.0,0.00027,4]
[384881971,1757613032789,-1000.0,0.00027,4]
[384881972,1757613032798,-1000.0,0.00027,3]
[384881973,1757613032808,-1000.0,0.00027,3]
[384881974,1757613032817,-805.57178784,0.00027,2]
[384881975,1757613032832,-194.42821216,0.00027,2]
[384881976,1757613032841,-1049.0,0.00027,4]
[384881977,1757613032851,-1000.0,0.00027,4]
[384881978,1757613032860,-1000.0,0.00027,3]
[384881979,1757613032869,-1000.0,0.00027,3]
[384881980,1757613032878,-701.0,0.00027,4]
[384881981,1757613032887,-1000.0,0.00027,3]
[384881982,1757613032896,-1000.0,0.00027,3]
[384881983,1757613032906,-174.0,0.00027039,7]
[384881984,1757613032915,-174.0,0.00027052,2]
[384881985,1757613032925,-200.0,0.000271,7]
[384881986,1757613032934,-249.44,0.00027133,2]
[384881987,1757613032942,-1120.575,0.000272,2]
[384881988,1757613032951,-818.99,0.00027226,15]
[384881989,1757613032960,-170.1,0.00027228,2]
[384881990,1757613032969,-174.0,0.00027238,7]
[384881991,1757613032978,-3013.7327643,0.00027273,2]
[384881992,1757613032987,-4130.92678675,0.00027276,2]
[384881993,1757613032996,-6373.21976547,0.00027277,2]
[384881994,1757613033005,-233.0,0.0002728,2]
[384881995,1757613033015,-877.05508632,0.00027281,2]
[384881996,1757613033023,-837.69571323,0.00027287,2]
[384881997,1757613033033,-262.86217548,0.00027297,2]
[384881998,1757613033043,-14343.34707891,0.000273,2]
[384881999,1757613033053,-1000.0,0.000273,2]
[384882000,1757613033062,-4130.92678674,0.00027339,2]
[384882001,1757613033071,-6373.21976538,0.0002734,2]
[384882002,1757613033080,-169.11731492,0.0002737,4]
[384882003,1757613033089,-156.90048431,0.0002737,4]
[384882004,1757613033099,-500.0,0.00027373,2]
[384882005,1757613033109,-512.43546639,0.00027373,2]
[384882006,1757613033118,-500.0,0.00027373,2]
[384882007,1757613033127,-500.0,0.00027373,2]
[384882008,1757613033137,-500.0,0.00027373,2]
[384882009,1757613033146,-500.0,0.00027373,2]
[384882010,1757613033156,-500.0,0.00027373,2]
[384882011,1757613033165,-151.0,0.00027373,7]
[384882012,1757613033174,-83743.05180735,0.00027376,5]
[384882013,1757613033185,-11827.01369416,0.00027376,5]
[384882014,1757613033194,-62338.04000002,0.00027376,2]
[384882015,1757613033204,-35836.8471667,0.00027377,2]
[384882016,1757613033213,-1000.0,0.00027381,2]
[384882017,1757613033222,-1259.0,0.00027383,2]
[384882018,1757613033232,-3386.0,0.00027383,2]
[384882019,1757613033242,-886.0,0.00027383,2]
[384882020,1757613033252,-2037.0,0.00027383,2]
[384882021,1757613033262,-568.0,0.00027383,2]
[384882022,1757613033271,-1302.0,0.00027383,2]
[384882023,1757613033280,-1579.0,0.00027383,2]
[384882024,1757613033289,-601.0,0.00027383,2]
[384882025,1757613033298,-812.0,0.00027383,2]
[384882026,1757613033307,-725.0,0.00027383,2]
[384882027,1757613033317,-20968.0,0.00027383,2]
[384882028,1757613033327,-4167.0,0.00027383,2]
[384882029,1757613033336,-42405.0700415,0.00027387,2]
[384882033,1757613038010,-515.37529716,0.00026316,2]
[384882034,1757613038019,-212.89373682,0.00027069,2]
[384882035,1757613038029,-343.08774971,0.00027299,2]
[384882036,1757613038038,-526.56625898,0.00027376,2]
[384882047,1757613039994,-655.18484048,0.00027376,2]
[384882048,1757613040004,-3817.86455857,0.00027376,5]
[384882049,1757613040049,-553.07826,0.00027376,5]
[384882050,1757613040150,-2213.7,0.00027376,5]
[384882051,1757613040162,-3244.97470981,0.00027376,5]
[384882052,1757613040174,-500.0,0.00027376,5]
[384882053,1757613040192,-15036.7631965,0.00027376,5]
[384882054,1757613040208,-450.87813603,0.00027376,5]
[384882055,1757613040219,-292.94126222,0.00027376,5]
[384882057,1757613040239,-21674.83262763,0.00027376,5]
[384882058,1757613040248,-6170.0,0.00027383,2]
[384882059,1757613040257,-10518.37215126,0.00027387,2]
[384882098,1757613043207,-1085.9496155,0.00027387,2]
[384882142,1757613046130,-2216.536,0.00027387,2]
[384882143,1757613046336,-265.59999999,0.00027387,2]
[384882152,1757613078501,1500.0,0.00026409,120]
[384882168,1757613208012,155.33,0.00016438,2]
[384882188,1757613406232,-146.28,0.00021313,2]
[384882189,1757613406248,-4.72,0.00021313,2]
[384882190,1757613406259,-146.28,0.00021327,2]
[384882192,1757613428319,-4.72,0.00021327,2]
[384882193,1757613428339,-4.72,0.00021335,2]
[384882194,1757613428354,-282.59745316,0.00021335,2]
[384882200,1757613450820,-151.0,0.0002132,2]
[384882201,1757613450848,-12.68254684,0.00021335,2]
[384882202,1757613450966,-151.0,0.00021344,2]
[384882203,1757613450988,-12.68254684,0.00021959,2]
[384882204,1757613451072,-95.01390001,0.00021959,2]
[384882205,1757613473342,-99.0,0.00021265,2]
[384882206,1757613473356,-52.0,0.00021265,2]
[384882207,1757613473368,-99.0,0.00021959,2]
[384882208,1757613480887,-91.10687301,0.00021959,2]
[384882209,1757613480907,-91.10687301,0.000223,2]
[384882210,1757613480926,-238.63652985,0.000223,2]
[384882211,1757613508371,-198.04,0.00022129,2]
[384882215,1757613550436,-55.56584204,0.00022129,2]
[384882216,1757613550452,-45.77831592,0.00022129,2]
[384882217,1757613550461,-55.56584204,0.00022215,2]
[384882226,1757613598077,-23.52584204,0.00022215,2]
[384882227,1757613598094,-115.90831592,0.00022215,2]
[384882228,1757613598103,-23.52584204,0.000223,2]
[384882235,1757613652794,-22.49666139,0.00022129,2]
[384882241,1757613685831,-195.0,0.00022129,2]
[384882244,1757613693199,406.73526929,0.00029863,120]
[384882274,1757613899024,153.53,0.00012881,2]
[384882295,1757614085007,329.68,0.00025617,120]
[384882296,1757614085307,329.68,0.00028819,120]
[384882301,1757614157619,166.59,0.00016438,2]
[384882302,1757614162318,-90.28793732,0.00022129,2]
[384882303,1757614162343,-102.30740708,0.00022783,2]
[384882334,1757614233075,-64.28259292,0.00022783,2]
[384882335,1757614233086,-1183.36815091,0.00023905,2]
[384882336,1757614233096,-326.44,0.00024273,2]
[384882337,1757614233106,-410.0,0.00024341,2]
[384882338,1757614233116,-1200.0,0.00024341,2]
[384882339,1757614233128,-250.0,0.00024342,2]
[384882340,1757614233138,-195.0,0.00024342,2]
[384882341,1757614233148,-422.37899369,0.00024342,2]
[384882342,1757614233157,-195.0,0.00024342,2]
[384882343,1757614233167,-150.0,0.00024633,2]
[384882344,1757614233176,-150.0,0.00024633,2]
[384882345,1757614233186,-150.0,0.00024633,2]
[384882346,1757614233196,-150.0,0.00024633,2]
[384882347,1757614233206,-150.0,0.00024633,2]
[384882348,1757614233216,-150.0,0.00024633,2]
[384882349,1757614233227,-261.70939444,0.00024633,2]
[384882350,1757614233236,-150.0,0.00024633,2]
[384882351,1757614233246,-150.0,0.00024633,2]
[384882352,1757614233256,-150.0,0.00024633,2]
[384882353,1757614233265,-150.0,0.00024633,2]
[384882354,1757614233275,-150.0,0.00024633,2]
[384882355,1757614233285,-184.07,0.00024658,2]
[384882356,1757614233295,-247.0,0.000248,5]
[384882357,1757614233304,-257.91778498,0.00024885,2]
[384882358,1757614233314,-4813.54408602,0.000249,2]
[384882359,1757614233323,-352.23,0.0002498,2]
[384882360,1757614233333,-300.0,0.00025061,2]
[384882361,1757614233342,-170.1,0.00025644,2]
[384882362,1757614233352,-545.44,0.00025655,2]
[384882363,1757614233362,-1858.6,0.00025669,2]
[384882364,1757614233372,-181.52,0.00025706,2]
[384882365,1757614233382,-2695.98212493,0.000258,2]
[384882366,1757614233394,-5344.26128386,0.000258,2]
[384882367,1757614233406,-298.86,0.000258,2]
[384882368,1757614233418,-503.0,0.000258,2]
[384882369,1757614233429,-565.67659121,0.000258,2]
[384882370,1757614233438,-515.37529716,0.00025862,2]
[384882371,1757614233448,-212.89373682,0.00025862,2]
[384882372,1757614233458,-326.44,0.0002594,7]
[384882373,1757614233467,-1392.18066611,0.00025957,2]
[384882374,1757614233479,-440.80090459,0.00025957,2]
[384882375,1757614233489,-150.0,0.00025993,7]
[384882376,1757614233498,-250.0,0.0002623,2]
[384882377,1757614233508,-267.46074303,0.00026254,2]
[384882378,1757614233517,-832.9,0.00026323,2]
[384882379,1757614233527,-1680.0,0.00026508,2]
[384882380,1757614233537,-317.64492485,0.00026558,2]
[384882381,1757614233548,-162.81,0.00026788,2]
[384882382,1757614233558,-258.84457261,0.0002679,2]
[384882383,1757614233568,-258.84457261,0.00026843,2]
[384882384,1757614233578,-600.0,0.0002685,2]
[384882385,1757614233587,-350.0,0.0002685,2]
[384882386,1757614233596,-258.84457261,0.00026856,2]
[384882387,1757614233606,-810.45322833,0.00026856,2]
[384882388,1757614233615,-258.84457261,0.00026861,2]
[384882389,1757614233624,-258.84457261,0.00026865,2]
[384882390,1757614233634,-1302.0,0.00026866,2]
[384882391,1757614233643,-568.0,0.00026866,2]
[384882392,1757614233654,-1579.0,0.00026866,2]
[384882393,1757614233663,-812.0,0.00026866,2]
[384882394,1757614233672,-897.0,0.00026866,2]
[384882395,1757614233681,-1176.0,0.00026866,2]
[384882396,1757614233690,-220.0,0.000269,2]
[384882397,1757614233700,-258.84457261,0.00026926,2]
[384882398,1757614233710,-258.84457261,0.00026928,2]
[384882399,1757614233719,-725.0,0.00026932,2]
[384882400,1757614233728,-4167.0,0.00026932,2]
[384882401,1757614233737,-6170.0,0.00026932,2]
[384882402,1757614233747,-181.52,0.00026992,2]
[384882403,1757614233756,-164.0,0.00027,7]
[384882404,1757614233765,-171.0,0.00027,7]
[384882405,1757614233775,-160.0,0.00027128,2]
[384882406,1757614233784,-3739.79381484,0.00027226,2]
[384882407,1757614233794,-655.192,0.00027228,15]
[384882408,1757614233803,-158.08745864,0.00027287,2]
[384882409,1757614233813,-834.07558481,0.00027287,2]
[384882410,1757614233833,-3032.89878717,0.00027287,2]
[384882411,1757614233843,-156.91,0.0002729,2]
[384882412,1757614233852,-767.42320053,0.00027292,2]
[384882413,1757614233861,-225.31043616,0.00027297,2]
[384882414,1757614233871,-753.92614188,0.00027297,2]
[384882415,1757614233881,-5098.57581234,0.00027297,2]
[384882416,1757614233891,-3866.97437193,0.00027349,2]
[384882417,1757614233900,-5098.5758123,0.00027358,2]
[384882418,1757614233910,-500.0,0.00027373,2]
[384882419,1757614233920,-500.0,0.00027373,2]
[384882420,1757614233930,-500.0,0.00027373,2]
[384882421,1757614233940,-500.0,0.00027373,2]
[384882422,1757614233949,-164.7719561,0.00027373,2]
[384882423,1757614233959,-188.84,0.00027377,2]
[384882424,1757614233969,-188.84,0.00027377,2]
[384882425,1757614233979,-240.1614248,0.00027386,2]
[384882426,1757614233988,-5590.87554973,0.00027387,2]
[384882427,1757614233998,-5952.29174375,0.00027387,5]
[384882428,1757614234010,-18282.3405327,0.00027387,5]
[384882429,1757614234019,-17457.81101206,0.00027387,2]
[384882430,1757614234039,-1282.65375268,0.00027387,2]
[384882431,1757614234054,-1090.230939,0.00027387,2]
[384882432,1757614234065,-17325.15371873,0.00027387,2]
[384882433,1757614234095,-1235.82210552,0.00027387,2]
[384882434,1757614234119,-67848.27992422,0.00027387,2]
[384882435,1757614234153,-624.74155518,0.00027387,2]
[384882436,1757614234172,-592.36206145,0.00027387,2]
[384882438,1757614238092,-20968.0,0.00026932,2]
[384882439,1757614238103,-85790.44349774,0.00027387,2]
[384882440,1757614238133,-339.04503997,0.00027387,2]
[384882441,1757614238144,-2764.36841243,0.00027387,2]
[384882442,1757614238156,-500.37920798,0.00027387,2]
[384882443,1757614238190,-833.69583873,0.00027387,2]
[384882444,1757614238202,-25325.00685731,0.00027387,2]
[384882445,1757614238211,-43113.57088542,0.00027387,2]
[384882446,1757614238245,-450.58499,0.00027387,2]
[384882458,1757614240068,-2148.6,0.00027387,2]
[384882464,1757614240122,-361.94908746,0.00027387,2]
[384882467,1757614240134,-12075.18339468,0.00027387,2]
[384882472,1757614240176,-416.916,0.00027387,2]
[384882474,1757614240188,-8630.79752159,0.00027387,2]
[384882593,1757614244000,-699.5899999,0.00027387,2]
[384882595,1757614244011,-424.49932413,0.00027387,2]
[384882597,1757614244023,-779.36679134,0.00027387,2]
[384882600,1757614244034,-11441.7108991,0.00027387,2]
[384882605,1757614244083,-809.15556711,0.00027387,2]
[384882607,1757614244097,-2207.55,0.00027387,2]
[384882726,1757614246015,-333.35431999,0.00027387,2]
[384882727,1757614246071,-129830.28912428,0.00027387,2]
[384882728,1757614246081,-272.61370268,0.00027387,2]
[384882729,1757614246095,-212.89373682,0.00027387,7]
[384882730,1757614246105,-151.0,0.00027387,7]
[384882731,1757614246114,-151.0,0.00027387,7]
[384882732,1757614246124,-151.0,0.00027387,7]
[384882733,1757614246134,-151.0,0.00027387,7]
[384882734,1757614246144,-151.0,0.00027387,7]
[384882735,1757614246153,-151.0,0.00027387,7]
[384882736,1757614246162,-151.0,0.00027387,7]
[384882737,1757614246171,-151.0,0.00027387,7]
[384882738,1757614246180,-292.195833,0.00027387,7]
[384882739,1757614246190,-292.195833,0.00027387,7]
[384882740,1757614246199,-292.195833,0.00027387,7]
[384882741,1757614246209,-151.0,0.00027387,7]
[384882742,1757614246218,-292.195833,0.00027387,7]
[384882743,1757614246227,-151.0,0.00027387,7]
[384882744,1757614246236,-151.0,0.00027387,7]
[384882745,1757614246246,-155.524208,0.00027387,7]
[384882746,1757614246255,-151.0,0.00027387,7]
[384882747,1757614246265,-151.0,0.00027387,7]
[384882748,1757614246274,-166.427758,0.00027387,7]
[384882749,1757614246283,-151.0,0.00027387,7]
[384882750,1757614246293,-151.0,0.00027387,7]
[384882751,1757614246302,-166.427758,0.00027387,7]
[384882752,1757614246311,-151.0,0.00027387,7]
[384882753,1757614246320,-151.0,0.00027387,7]
[384882754,1757614246330,-151.0,0.00027387,7]
[384882755,1757614246339,-166.427758,0.00027387,7]
[384882756,1757614246348,-202.46837,0.00027387,7]
[384882757,1757614246358,-151.0,0.00027387,7]
[384882758,1757614246367,-166.427758,0.00027387,7]
[384882759,1757614246376,-202.46837,0.00027387,7]
[384882760,1757614246386,-202.46837,0.00027387,7]
[384882761,1757614246396,-202.46837,0.00027387,7]
[384882762,1757614246406,-175.863892,0.00027387,7]
[384882763,1757614246415,-886.0,0.00027392,2]
[384882764,1757614246425,-1259.0,0.00027392,2]
[384882765,1757614246434,-3386.0,0.00027392,2]
[384882766,1757614246444,-1924.441,0.00027392,2]
[384882767,1757614246454,-601.0,0.00027392,2]
[384882768,1757614246463,-2000.0,0.00027396,2]
[384882769,1757614246473,-300.0,0.00027396,10]
[384882770,1757614246483,-1061.0053,0.00027396,2]
[384882771,1757614246492,-511.0,0.00027397,2]
[384882772,1757614246502,-136540.0042224,0.00027397,2]
[384882775,1757614246511,-301.93187684,0.00027397,2]
[384882777,1757614246521,-1053.02591942,0.00027397,7]
[384882778,1757614246531,-400.0,0.00027397,7]
[384882779,1757614246540,-516.61321639,0.00027397,7]
[384882780,1757614246550,-400.0,0.00027397,7]
[384882781,1757614246561,-400.0,0.00027397,7]
[384882782,1757614246570,-400.0,0.00027397,7]
[384882783,1757614246579,-1342.46,0.00027397,7]
[384882784,1757614246589,-400.0,0.00027397,7]
[384882785,1757614246598,-400.0,0.00027397,7]
[384882786,1757614246608,-402.86,0.00027397,7]
[384882787,1757614246617,-151.0,0.00027397,7]
[384882788,1757614246626,-400.0,0.00027397,7]
[384882789,1757614246635,-500.0,0.00027397,7]
[384882790,1757614246924,-400.0,0.00027397,7]
[384882791,1757614246937,-459.46015094,0.00027397,7]
[384882792,1757614246946,-400.0,0.00027397,7]
[384882793,1757614246955,-400.0,0.00027397,7]
[384882794,1757614246965,-400.0,0.00027397,7]
[384882795,1757614246974,-400.0,0.00027397,7]
[384882796,1757614246983,-1485.6,0.00027397,7]
[384882797,1757614246992,-1036.35,0.00027397,7]
[384882798,1757614247002,-400.0,0.00027397,7]
[384882799,1757614247011,-400.0,0.00027397,7]
[384882800,1757614247020,-400.0,0.00027397,7]
[384882801,1757614247029,-400.0,0.00027397,7]
[384882802,1757614247038,-400.0,0.00027397,7]
[384882803,1757614247050,-400.0,0.00027397,7]
[384882804,1757614247060,-400.0,0.00027397,7]
[384882805,1757614247069,-400.0,0.00027397,7]
[384882806,1757614247078,-400.0,0.00027397,7]
[384882807,1757614247087,-400.0,0.00027397,7]
[384882808,1757614247098,-400.0,0.00027397,7]
[384882809,1757614247107,-400.0,0.00027397,7]
[384882810,1757614247116,-407.25639064,0.00027397,7]
[384882811,1757614247128,-400.0,0.00027397,7]
[384882812,1757614247137,-405.24248273,0.00027397,7]
[384882813,1757614247148,-400.0,0.00027397,7]
[384882814,1757614247157,-400.0,0.00027397,7]
[384882815,1757614247167,-454.96,0.00027397,7]
[384882816,1757614247176,-204.90707355,0.00027397,7]
[384882817,1757614247185,-1260.75,0.00027397,7]
[384882818,1757614247194,-400.0,0.00027397,7]
[384882819,1757614247204,-400.0,0.00027397,7]
[384882820,1757614247214,-400.0,0.00027397,7]
[384882821,1757614247223,-400.0,0.00027397,7]
[384882822,1757614247233,-400.0,0.00027397,7]
[384882823,1757614247242,-400.0,0.00027397,7]
[384882824,1757614247250,-400.0,0.00027397,7]
[384882825,1757614247259,-512.06432364,0.00027397,7]
[384882826,1757614247268,-1382.22,0.00027397,7]
[384882827,1757614247277,-1445.6,0.00027397,7]
[384882828,1757614247286,-400.0,0.00027397,7]
[384882829,1757614247295,-400.0,0.00027397,7]
[384882830,1757614247304,-400.0,0.00027397,7]
[384882831,1757614247314,-400.0,0.00027397,7]
[384882832,1757614247322,-400.0,0.00027397,7]
[384882833,1757614247332,-400.0,0.00027397,7]
[384882834,1757614247341,-400.0,0.00027397,7]
[384882835,1757614247350,-1195.5,0.00027397,7]
[384882836,1757614247359,-400.0,0.00027397,7]
[384882837,1757614247368,-400.0,0.00027397,7]
[384882838,1757614247377,-400.0,0.00027397,7]
[384882839,1757614247387,-405.10345656,0.00027397,7]
[384882840,1757614247396,-404.08888396,0.00027397,7]
[384882841,1757614247406,-400.0,0.00027397,7]
[384882842,1757614247415,-2034.96,0.00027397,7]
[384882843,1757614247424,-405.86,0.00027397,7]
[384882844,1757614247433,-568.63,0.00027397,7]
[384882845,1757614247442,-400.0,0.00027397,7]
[384882846,1757614247452,-1652.62,0.00027397,7]
[384882847,1757614247461,-400.0,0.00027397,7]
[384882848,1757614247471,-400.0,0.00027397,7]
[384882849,1757614247480,-400.0,0.00027397,7]
[384882850,1757614247491,-151.0,0.00027397,7]
[384882851,1757614247500,-400.0,0.00027397,7]
[384882852,1757614247510,-151.0,0.00027397,7]
[384882853,1757614247519,-151.0,0.00027397,7]
[384882854,1757614247529,-185.180279,0.00027397,7]
[384882855,1757614247538,-400.0,0.00027397,7]
[384882856,1757614247547,-151.0,0.00027397,7]
[384882857,1757614247557,-151.0,0.00027397,7]
[384882858,1757614247566,-400.0,0.00027397,7]
[384882859,1757614247575,-400.0,0.00027397,7]
[384882860,1757614247584,-525.58444681,0.00027397,7]
[384882861,1757614247593,-487.64,0.00027397,7]
[384882862,1757614247602,-400.0,0.00027397,7]
[384882863,1757614247611,-652.14,0.00027397,7]
[384882864,1757614247621,-400.0,0.00027397,7]
[384882865,1757614247630,-400.0,0.00027397,7]
[384882866,1757614247639,-400.0,0.00027397,7]
[384882867,1757614247649,-761.73,0.00027397,7]
[384882868,1757614247658,-400.0,0.00027397,7]
[384882869,1757614247667,-400.0,0.00027397,7]
[384882870,1757614247676,-151.527076,0.00027397,7]
[384882871,1757614247686,-400.0,0.00027397,7]
[384882872,1757614247695,-400.0,0.00027397,7]
[384882873,1757614247705,-400.0,0.00027397,7]
[384882874,1757614247715,-400.0,0.00027397,7]
[384882875,1757614247725,-400.0,0.00027397,7]
[384882876,1757614247734,-400.0,0.00027397,7]
[384882877,1757614247744,-1359.94,0.00027397,7]
[384882878,1757614247753,-925.14,0.00027397,7]
[384882879,1757614247762,-400.0,0.00027397,7]
[384882880,1757614247772,-400.0,0.00027397,7]
[384882881,1757614247781,-400.0,0.00027397,7]
[384882882,1757614247790,-400.0,0.00027397,7]
[384882883,1757614247801,-696.72,0.00027397,7]
[384882884,1757614247810,-400.0,0.00027397,7]
[384882885,1757614247820,-798.14,0.00027397,7]
[384882886,1757614247830,-2133.71,0.00027397,7]
[384882887,1757614247839,-1351.36,0.00027397,7]
[384882888,1757614247848,-400.0,0.00027397,2]
[384882889,1757614247857,-400.0,0.00027397,7]
[384882890,1757614247867,-400.0,0.00027397,7]
[384882891,1757614247876,-421.96,0.00027397,7]
[384882892,1757614247886,-400.0,0.00027397,7]
[384882893,1757614247896,-400.0,0.00027397,7]
[384882894,1757614247905,-400.0,0.00027397,7]
[384882895,1757614247915,-400.0,0.00027397,7]
[384882896,1757614247924,-400.0,0.00027397,7]
[384882897,1757614247933,-400.0,0.00027397,7]
[384882898,1757614247943,-400.0,0.00027397,7]
[384882899,1757614247952,-1033.95,0.00027397,7]
[384882900,1757614247962,-400.0,0.00027397,7]
[384882901,1757614247971,-400.0,0.00027397,7]
[384882902,1757614247980,-400.0,0.00027397,7]
[384882903,1757614247990,-400.0,0.00027397,7]
[384882904,1757614247999,-400.0,0.00027397,7]
[384882905,1757614248009,-1042.65,0.00027397,7]
[384882906,1757614248019,-400.0,0.00027397,7]
[384882907,1757614248029,-400.0,0.00027397,7]
[384882908,1757614248039,-400.0,0.00027397,7]
[384882909,1757614248054,-400.0,0.00027397,7]
[384882910,1757614248076,-400.0,0.00027397,7]
[384882911,1757614248087,-400.0,0.00027397,7]
[384882912,1757614248096,-400.0,0.00027397,7]
[384882913,1757614248106,-400.0,0.00027397,7]
[384882914,1757614248115,-571.16,0.00027397,7]
[384882915,1757614248126,-408.42717042,0.00027397,7]
[384882916,1757614248135,-400.0,0.00027397,7]
[384882917,1757614248145,-1945.09,0.00027397,7]
[384882918,1757614248155,-400.0,0.00027397,7]
[384882919,1757614248167,-1075.06,0.00027397,7]
[384882920,1757614248176,-400.0,0.00027397,7]
[384882921,1757614248184,-400.0,0.00027397,7]
[384882922,1757614248194,-400.0,0.00027397,7]
[384882923,1757614248203,-719.57,0.00027397,7]
[384882924,1757614248212,-400.0,0.00027397,7]
[384882925,1757614248222,-400.90086958,0.00027397,7]
[384882926,1757614248231,-400.0,0.00027397,7]
[384882927,1757614248241,-400.0,0.00027397,7]
[384882928,1757614248249,-244.43471944,0.00027397,7]
[384882929,1757614248259,-400.0,0.00027397,7]
[384882930,1757614248268,-400.0,0.00027397,7]
[384882931,1757614248278,-400.0,0.00027397,7]
[384882932,1757614248288,-400.0,0.00027397,7]
[384882933,1757614248297,-400.0,0.00027397,7]
[384882934,1757614248307,-1625.34,0.00027397,7]
[384882935,1757614248317,-400.0,0.00027397,7]
[384882936,1757614248327,-400.0,0.00027397,7]
[384882937,1757614248336,-412.24205558,0.00027397,7]
[384882938,1757614248345,-528.83,0.00027397,7]
[384882939,1757614248354,-400.0,0.00027397,7]
[384882940,1757614248364,-1030.86,0.00027397,7]
[384882941,1757614248374,-624.14,0.00027397,7]
[384882942,1757614248384,-400.0,0.00027397,7]
[384882943,1757614248395,-400.0,0.00027397,7]
[384882944,1757614248405,-400.0,0.00027397,7]
[384882945,1757614248416,-733.85,0.00027397,7]
[384882946,1757614248426,-403.74625461,0.00027397,7]
[384882947,1757614248435,-400.0,0.00027397,7]
[384882948,1757614248445,-400.0,0.00027397,7]
[384882949,1757614248454,-993.44,0.00027397,7]